{"text_format":"1","workbook":"xlsx","n_sheets":10,"sheets":["ANA SAYFA","1. ATIK YÖNETİMİ GÖSTERGELERİ","2. TOPLANAN ATIK MİKTARLARI","3. OLUŞAN ATIK MİKTARLARI","4. ATIK KOMPOZİSYONU","5. DUZENLi DEPOLAMA","6. ATIK GERI KAZANIMI","7. TOPLAM MALİYET","8. YATIRIM FİNANSMANI","9. SÖZEL BİLGİ"],"not_rendered":{"charts":9,"images":0,"macros":1,"external_links":0,"defined_names":9,"comments":6,"pivot_tables":0},"unopened":[],"bounds":{"document_bytes":16777216,"sheet_cells":100000,"rows_first":2000,"rows_last":500,"rows_between":2000,"halvings":0,"cell_chars":16384,"cell_head_chars":4096},"cells_cut":0,"cells_raw":0,"read":"whole","date_system":"1900"}

{"sheet":"ANA SAYFA","index":0,"n_rows":49,"n_cols":7,"rows_kept":49,"cut":false,"hidden":false,"merged":[[0,0,2,10],[14,6,14,9],[17,6,17,9],[7,5,14,5],[7,6,7,9],[8,6,8,9],[9,6,9,9],[10,6,10,9],[11,6,11,9],[12,6,12,9],[13,6,13,9]]}
["Önemli hatırlatma: Verileri girmeye başlamadan önce SWIS programının doğru çalışması için Makroları aktif hale getirmeniz gerekmektedir.\nÖnemli hatırlatma: Dosyayı kaydederken \"Makro çalıştırabilen Excel çalışma kitabı\" seçeneğini işaretleyerek kaydediniz."]
[]
[]
[]
[]
[]
[]
[null,null,null,null,null,"VERİ GİRİŞİ","2. TOPLANAN TOPLAM ATIK"]
[null,null,null,null,null,null,"3. OLUŞAN TOPLAM ATIK"]
[null,null,null,null,null,null,"4. ATIK KOMPOZİSYONU"]
[null,null,null,null,null,null,"5. DÜZENLİ DEPOLAMA"]
[null,null,null,null,null,null,"6. ATIK GERİ KAZANIMI"]
[null,null,null,null,null,null,"7. TOPLAM MALİYET"]
[null,null,null,null,null,null,"8. YATIRIM FİNANSMANI"]
[null,null,null,null,null,null,"9. SÖZEL BİLGİ"]
[]
[]
[null,null,null,null,null,"SONUÇ","1. GÖSTEGELERİN ÖZETİ"]
[]
[]
[]
[]
[]
[]
[]
[]
[]
[]
[]
[]
[]
[]
[]
[]
[]
[]
[]
[]
[]
[]
[]
[]
[]
[]
[]
[]
[]
[]
[null,null,null,null,null,null,"Milisav Aleksic, freelance consultant, Belgrade, Serbia, milisav.aleksic@gmai.com "]

{"sheet":"1. ATIK YÖNETİMİ GÖSTERGELERİ","index":1,"n_rows":63,"n_cols":6,"rows_kept":63,"cut":false,"hidden":false,"merged":[]}
[null,"Verilerin alındığı yıl",{"$f":"'2. TOPLANAN ATIK MİKTARLARI'!E1","v":0}]
[null,{"$f":"'2. TOPLANAN ATIK MİKTARLARI'!B2:F2","v":0}]
[null,"Hizmet alanı (km2)",{"$f":"IFERROR('2. TOPLANAN ATIK MİKTARLARI'!C3,\"\")","v":0}]
[null,"Toplam nüfus (kişi)",{"$f":"IFERROR('2. TOPLANAN ATIK MİKTARLARI'!C4,\"\")","v":0}]
[null,"Toplam hane sayısı (adet)",{"$f":"IFERROR('2. TOPLANAN ATIK MİKTARLARI'!C5,\"\")","v":0}]
[null,"BELEDİYE ATIKLARI YÖNETİM GÖSTERGELERİ",null,"Gösterge aralığı","En az ","En çok"]
["I","BELEDİYE ATIKLARI TOPLAMA VE TAŞIMA"]
[1,{"$f":"'7. TOPLAM MALİYET'!G5","v":"Hizmet edilen toplam nüfus/hane sayısı"},{"$f":"IFERROR('7. TOPLAM MALİYET'!I5,\"\")","v":""},"> 70%",0.7,1]
[2,"Hizmet verilen kentsel alan oranı (%)",{"$f":"IFERROR('7. TOPLAM MALİYET'!I6,\"\")","v":""},"> 90%",0.9,1]
[3,"Hizmet verilen kırsal alan oranı (%)",{"$f":"IFERROR('7. TOPLAM MALİYET'!I7,\"\")","v":""},"> 60%",0.6,1]
[4,"Toplanan ORTALAMA  atık (hane/ kg/gün)  ",{"$f":"IFERROR('2. TOPLANAN ATIK MİKTARLARI'!J10,\"\")","v":""},"1,05 - 3,6kg",1.0499999999999998,3.5999999999999996]
[5,{"$f":"'3. OLUŞAN ATIK MİKTARLARI'!B6","v":"Toplanan ORTALAMA evsel atık  (kişi/kg/gün)"},{"$f":"IFERROR('3. OLUŞAN ATIK MİKTARLARI'!C6,\"\")","v":""},"0,35 - 1,2kg",0.35,1.2]
[6,{"$f":"'7. TOPLAM MALİYET'!B22","v":"Katı atık yönetimindeki (KAY) bir işçi tarafından yıllık toplanan atık miktarı (ton)"},{"$f":"IFERROR('7. TOPLAM MALİYET'!C22,\"\")","v":""},"> 650 ton/Empl.",650,1600]
[7,{"$f":"'7. TOPLAM MALİYET'!B23","v":"Katı atık yönetimindeki (KAY) bir işçi tarafından hizmet edilen nüfus "},{"$f":"IFERROR('7. TOPLAM MALİYET'!C23,\"\")","v":""},"> 1300 PE / Empl.",1300,7000]
[8,{"$f":"'7. TOPLAM MALİYET'!B24","v":"Hizmet edilen her 1000 kişiye karşılık gelen Katı atık yönetimi (KAY) işçi sayısı "},{"$f":"IFERROR('7. TOPLAM MALİYET'!C24:D24,\"\")","v":""},"1 - 2 Empl/1000 PE",1,2]
[9,{"$f":"'7. TOPLAM MALİYET'!B21","v":"İdari personelin işçi personele İstihdam Oranı 1:"},{"$f":"IFERROR('7. TOPLAM MALİYET'!C21:D21,\"\")","v":""},null,14,25]
[10,{"$f":"'9. SÖZEL BİLGİ'!C55","v":"TOPLAM sağlanan Toplama Hacmi m3"},{"$f":"'9. SÖZEL BİLGİ'!H55","v":0},null,{"$f":"C18","v":""},{"$f":"C19","v":""}]
[11,"Mevcut toplama seviyesinde hizmet verilmesi gereken hacim (m3)",{"$f":"IFERROR(('2. TOPLANAN ATIK MİKTARLARI'!C10*'2. TOPLANAN ATIK MİKTARLARI'!J10)/'2. TOPLANAN ATIK MİKTARLARI'!G10/1000,\"\")","v":""}]
[12,"%100 toplama seviyesi için hizmet verilmesi gereken hacim (m3)",{"$f":"IFERROR(('2. TOPLANAN ATIK MİKTARLARI'!C5*'2. TOPLANAN ATIK MİKTARLARI'!J10)/'2. TOPLANAN ATIK MİKTARLARI'!G10/1000,\"\")","v":""}]
[13,"Mevcut toplama seviyesinin, hizmet verilmesi gereken seviyeye oranı (%)",{"$f":"IFERROR(C18/C17,\"\")","v":""},{"$f":"1:1","v":0},1,1]
[14,"Mevcut toplama seviyesinin, %100 seviyeye oranı (%)",{"$f":"IFERROR(C19/C17,\"\")","v":""},null,1,1]
["II","BELEDİYE ATIKLARI MİKTARI"]
[15,{"$f":"'3. OLUŞAN ATIK MİKTARLARI'!L9","v":"Üretilen tahmini  toplam atık  (ton/yıl) "},{"$f":"IFERROR('3. OLUŞAN ATIK MİKTARLARI'!L21,\"\")","v":0}]
[16,{"$f":"'2. TOPLANAN ATIK MİKTARLARI'!H9","v":"Toplanan ORTALAMA  atık    (hane/ kg/gün)  "},{"$f":"'2. TOPLANAN ATIK MİKTARLARI'!H21","v":0}]
[17,"Kentsel alanlar ile kırsal alanlarda toplanan atık oranı",{"$f":"IFERROR('7. TOPLAM MALİYET'!H6/'7. TOPLAM MALİYET'!H7,\"\")","v":""}]
[18,{"$f":"'3. OLUŞAN ATIK MİKTARLARI'!M9","v":"Tahmini kontrolsüz atık bertarafı (ton/yıl) "},{"$f":"IFERROR('3. OLUŞAN ATIK MİKTARLARI'!M21,\"\")","v":0}]
[19,"Kontrolsüz bertarafı edilen atığın, toplam üretilen atığa oranı (%)",{"$f":"IFERROR('3. OLUŞAN ATIK MİKTARLARI'!N21,\"\")","v":""}]
[20,"Kontrolsüz bertarafı edilen atığın, toplam toplanan atığa oranı (%)",{"$f":"'3. OLUŞAN ATIK MİKTARLARI'!O21","v":0}]
["III","BELEDİYE ATIKLARININ DÜZENLİ DEPOLAMA ALANLARINDA BERTARAF EDİLMESİ (AYIRMA OLMAKSIZIN)"]
[21,"Vahşi depolama ile bertaraf edilen belediye atıkları oranı (ayırma olmaksızın) (%)",{"$f":"IFERROR('5. DUZENLi DEPOLAMA'!F24,\"\")","v":""},null,0,0]
[22,"Düzenli depolama ile bertaraf edilen belediye atıkları oranı (ayırma olmaksızın) (%)",{"$f":"IFERROR('5. DUZENLi DEPOLAMA'!H24,\"\")","v":""},null,1,1]
[23,"Yakma yolu ile bertaraf edilen belediye atıkları oranı (ayırma olmaksızın) (%)",{"$f":"IFERROR('5. DUZENLi DEPOLAMA'!J24,\"\")","v":""},null,0,1]
["IV","AYIRMA SONRASI BELEDİYE ATIKLARININ BERTARAFI"]
[24,"Toplanan belediye atıklarının ayırma sonrası düzenli depolamada bertaraf edilme oranı (%)",{"$f":"IFERROR('6. ATIK GERI KAZANIMI'!M24,\"\")","v":""},"65% - 35%",0.65,0.35]
[25,"Kişi başı bertaraf edilen evsel atık miktarı (kişi/kg/gün)",{"$f":"IFERROR(C12*C34,\"\")","v":""},"0,23 - 0,42kg/PE*day",{"$f":"E11*E34","v":0.68249999999999988},{"$f":"F11*F34","v":1.2599999999999998}]
[26,"Toplanan atıkların ayrılma oranı (%)",{"$f":"IFERROR('6. ATIK GERI KAZANIMI'!F24+'6. ATIK GERI KAZANIMI'!H24,\"\")","v":""},"35% - 65%",{"$f":"100%-E34","v":0.35},{"$f":"100%-F34","v":0.65}]
[27,"Kişi başı ortalama ayrılan atık miktarı (kişi/kg/gün)",{"$f":"IFERROR(C12*C36,\"\")","v":""},"0,12 - 0,78kg/PE*day",{"$f":"E36*E11","v":0.36749999999999994},{"$f":"F36*F11","v":2.34}]
["V","MUNICIPAL WASTE RECOVERY AFTER SEPARATION"]
[28,"% out of total separated waste recycled and marketed including stocks",{"$f":"IFERROR('6. ATIK GERI KAZANIMI'!R24,\"\")","v":""},"0% - 80%",0,0.8]
[29,"% out of total separated waste incinerated with energy recovery",{"$f":"IFERROR('6. ATIK GERI KAZANIMI'!T24,\"\")","v":""},"0% - 40%",0,0.4]
[30,"% out of total separated waste composted",{"$f":"IFERROR('6. ATIK GERI KAZANIMI'!V24,\"\")","v":""},"0% - 65%",0,0.65]
["VI","DÜZENLİ DEPOLAMA KULLANIM KAPASİTESİ"]
[31,{"$f":"'6. ATIK GERI KAZANIMI'!B30","v":"Mevcut depolama sahasının bugüne kadar kullanılan kapasitesi"},{"$f":"'6. ATIK GERI KAZANIMI'!D30","v":0},"0 - 100%",0,1]
[32,{"$f":"'6. ATIK GERI KAZANIMI'!B33","v":"Depolama sahası ömrü - ayrıştırma veya yakma olmaksızın mevcut depolama oranı ile kalan yıllar"},{"$f":"IFERROR('6. ATIK GERI KAZANIMI'!D33,\"\")","v":""},"5 - 10 years",5,10]
[33,{"$f":"'6. ATIK GERI KAZANIMI'!B32","v":"Depolama sahası ömrü -  ayrıştırma, geri dönüşüm ve geri kazanım yapıldıktan sonra kalan yıllar"},{"$f":"IFERROR('6. ATIK GERI KAZANIMI'!D32,\"\")","v":""},"> 30 years",5,30]
[34,{"$f":"'6. ATIK GERI KAZANIMI'!B27","v":"Ayrıştırmadan önce depolanan günlük ortalama atık (ton)"},{"$f":"IFERROR('6. ATIK GERI KAZANIMI'!D27,\"\")","v":""}]
[35,{"$f":"'6. ATIK GERI KAZANIMI'!B28","v":"Ayrıştırmadan sonra depolanan günlük ortalama atık (ton)"},{"$f":"IFERROR('6. ATIK GERI KAZANIMI'!D28,\"\")","v":""}]
["VII","MEVCUT MALİYETLER, PLANLANAN YATIRIMLAR VE TAHMİN EDİLEN MALİYETLER "]
[null,"Ton/TL"]
[36,{"$f":"'7. TOPLAM MALİYET'!B25","v":"Mevcut Atık Toplama ve Taşıma Maliyeti (₺ /ton)"},{"$f":"IFERROR('7. TOPLAM MALİYET'!C25,\"\")","v":""},null,10,45]
[37,{"$f":"'8. YATIRIM FİNANSMANI'!B68","v":"Ton başına toplama ve taşıma maliyetlerinde tahmini artış (₺)"},{"$f":"IFERROR('8. YATIRIM FİNANSMANI'!C68,\"\")","v":""}]
[38,{"$f":"'8. YATIRIM FİNANSMANI'!B67","v":"Ekipman yatırımları için artışı  içerecek şekilde tahmini toplama ve taşıma maliyeti (₺/ton)"},{"$f":"IFERROR('8. YATIRIM FİNANSMANI'!C67,\"\")","v":""}]
[39,{"$f":"'8. YATIRIM FİNANSMANI'!E67","v":"Toplanan miktarların geri dönüşümü, geri kazanımı ve düzenli depolanması için yatırım maliyetlerinde tahmini artış (₺/ton)"},{"$f":"IFERROR('8. YATIRIM FİNANSMANI'!F67,\"\")","v":""}]
[40,{"$f":"'8. YATIRIM FİNANSMANI'!E68","v":"Katı Atık Yönetiminin (toplama, taşıma, işleme ve düzenli depolama) yatırımlardaki artışı içeren tahmini toplam maliyeti (₺/ton)"},{"$f":"IFERROR('8. YATIRIM FİNANSMANI'!F68,\"\")","v":""},null,60,120]
[null,"Birim hane başına"]
[41,"Hane başına mevcut toplama ve taşıma maliyeti (TL/Yıl)",{"$f":"IFERROR('2. TOPLANAN ATIK MİKTARLARI'!J10*365/1000*C50,\"\")","v":""}]
[42,"Toplama ve taşıma maliyetlerinde tahmin edilen yıllık artış (TL/Yıl)",{"$f":"IFERROR(C58-C56,\"\")","v":""}]
[43,"Tamin edilen toplama ve taşıma maliyeti (TL/Yıl)",{"$f":"IFERROR('2. TOPLANAN ATIK MİKTARLARI'!J10*365/1000*'8. YATIRIM FİNANSMANI'!C67,\"\")","v":""}]
[44,"Toplanan atıkların depolanması, geri kazanımı ve geri dönüşümü için yapılacak yatırımların masraflarına ilişkin tahmin edilen artış miktarı (TL/Yıl)",{"$f":"IFERROR('2. TOPLANAN ATIK MİKTARLARI'!J10*365/1000*'8. YATIRIM FİNANSMANI'!F67,\"\")","v":""}]
[45,"Artan yatırımlar da dahil edilerek tahmin edilen toplam Katı Tık Yönetimi maliyeti (toplama, taşıma, arıtma ve bertaraf) (TL/Yıl)",{"$f":"IFERROR('2. TOPLANAN ATIK MİKTARLARI'!J10*365/1000*C54,\"\")","v":""}]
[]
[]
[null,"ANA SAYFA"]

{"sheet":"2. TOPLANAN ATIK MİKTARLARI","index":2,"n_rows":22,"n_cols":10,"rows_kept":22,"cut":false,"hidden":false,"merged":[[0,4,0,5],[1,1,1,5],[0,2,0,3],[21,1,23,2],[21,3,40,9],[6,2,6,9]]}
[null,"BELEDİYE","Verilerin zamanı - Yıl"]
[]
[null,"Alan (km2)"]
[null,"Toplam Nüfus (kişi)"]
[null,"Toplam Hane Sayısı (adet)"]
[null,"Hane başına ortalama kişi sayısı",{"$f":"C4/C5","v":{"$error":"#DIV/0!"}}]
[null,null,"TOTAL MUNICIPAL WASTE COLLECTED FROM SERVICED WASTE GENERATORS"]
[null,null,1,2,2.1,3,4,5,null,6]
[null,"TÜRÜNE GÖRE ATIK KAYNAĞI","Hizmet edilen toplam atık üreticileri  sayısı  ","Seçilmiş kategorilerde yıllık toplanan atık miktarı","Ölçüm birimini seçiniz","Ortalama atık yoğunluğu dönüşüm faktörü (t/m3)","Yıllık toplanan atık miktarı (ton) ","Toplanan ORTALAMA  atık    (hane/ kg/gün)  ",null,"Toplanan ORTALAMA evsel atık  (kişi/kg/gün)"]
[1,"Karışık evsel atık",null,null,null,{"$f":"I10/$H$21","v":{"$error":"#DIV/0!"}},null,{"$f":"IF(C10=0,D10=0,IF(D10=0,C10=0,D10*G10))","v":true},{"$f":"IFERROR(VALUE(H10),0)","v":0},{"$f":"((H10/C10)/365)*1000","v":{"$error":"#DIV/0!"}}]
[2,"Kamu alanlarından kaynaklanan belediye atığı",null,null,null,{"$f":"I11/$H$21","v":{"$error":"#DIV/0!"}},null,{"$f":"IF(C11=0,D11=0,IF(D11=0,C11=0,D11*G11))","v":true},{"$f":"IFERROR(VALUE(H11),0)","v":0},{"$f":"((H11/C11)/365)*1000","v":{"$error":"#DIV/0!"}}]
[3,"Hacimli belediye atığı",null,null,null,{"$error":"#DIV/0!"},null,true,{"$f":"IFERROR(VALUE(H12),0)","v":0},{"$error":"#DIV/0!"}]
[4,"Ticari kuruluşlar",null,null,null,{"$error":"#DIV/0!"},null,true,0,{"$error":"#DIV/0!"}]
[5,"Kurumlar  (Belediye ve diğer)",null,null,null,{"$error":"#DIV/0!"},null,true,0,{"$error":"#DIV/0!"}]
[6,"Tehlikesiz sanayi atıkları ",null,null,null,{"$error":"#DIV/0!"},null,true,0,{"$error":"#DIV/0!"}]
[7,"İnşaat atığı",null,null,null,{"$error":"#DIV/0!"},null,true,0,{"$error":"#DIV/0!"}]
[8,"Tarımsal organik atık",null,null,null,{"$error":"#DIV/0!"},null,true,0,{"$error":"#DIV/0!"}]
[9,"Diğer",null,null,null,{"$error":"#DIV/0!"},null,true,0,{"$error":"#DIV/0!"}]
[10,"Diğer",null,null,null,{"$error":"#DIV/0!"},null,true,0,{"$error":"#DIV/0!"}]
[11,"Diğer",null,null,null,{"$error":"#DIV/0!"},null,true,0,{"$error":"#DIV/0!"}]
[null,"TOPLAM",null,null,null,{"$f":"SUM(F10:F20)","v":{"$error":"#DIV/0!"}},null,{"$f":"SUM(H10:H20)","v":0}]
[null,"ANA SAYFA",null,"Notlar:"]

{"sheet":"3. OLUŞAN ATIK MİKTARLARI","index":3,"n_rows":23,"n_cols":14,"rows_kept":23,"cut":false,"hidden":false,"merged":[[22,1,24,2],[22,3,42,14],[0,4,0,5],[0,7,0,8],[1,1,1,8],[0,2,0,3],[6,2,6,14]]}
[null,{"$f":"'2. TOPLANAN ATIK MİKTARLARI'!B1","v":"BELEDİYE"},{"$f":"'2. TOPLANAN ATIK MİKTARLARI'!C1","v":"Verilerin zamanı - Yıl"},null,{"$f":"'2. TOPLANAN ATIK MİKTARLARI'!E1:F1","v":0},null,null,{"$f":"'2. TOPLANAN ATIK MİKTARLARI'!E1","v":0}]
[null,{"$f":"'2. TOPLANAN ATIK MİKTARLARI'!B2","v":0}]
[null,"Toplam Nüfus ",{"$f":"'2. TOPLANAN ATIK MİKTARLARI'!C4","v":0}]
[null,"Toplam Hane Sayısı",{"$f":"'2. TOPLANAN ATIK MİKTARLARI'!C5","v":0}]
[null,"Hane başına ortalama kişi sayısı",{"$f":"C3/C4","v":{"$error":"#DIV/0!"}}]
[null,"Toplanan ORTALAMA evsel atık  (kişi/kg/gün)",{"$f":"(L21/C3/365*1000)","v":{"$error":"#DIV/0!"}}]
[null,null,"TÜM KAYNAKLARDA OLUŞAN TOPLAM BELEDİYE ATIKLARI"]
[null,null,1,2,null,null,2,3,4,5,6,7,8,9]
[null,"TÜRÜNE GÖRE ATIK KAYNAĞI","Hizmet edilen toplam atık üreticileri  sayısı  ","Mevcut atık üreticilerinin toplam       sayısı     (hizmet edilenler  dahil) ","Quantity of waste collected annually in m3","% of Total Collected","Average waste density conversion factor","Mevcut ile hizmet edilen atık üreticileri sayısı arasındaki fark","Yıllık toplanan atık miktarı (ton)","Miktarların yüzdesi olarak tahmini hizmet kapsamı  %","Üretilen (ancak toplanmayan) tahmini ortalama toplam atık  (ton) ","Üretilen tahmini  toplam atık  (ton/yıl) ","Tahmini kontrolsüz atık bertarafı (ton/yıl) ","Tahmin edilen kontrolsüz bertarafın, oluşan atığa oranı (%)"]
[1,{"$f":"'2. TOPLANAN ATIK MİKTARLARI'!B10","v":"Karışık evsel atık"},{"$f":"'2. TOPLANAN ATIK MİKTARLARI'!C10","v":0},null,{"$f":"IF('2. TOPLANAN ATIK MİKTARLARI'!H10=FALSE,'2. TOPLANAN ATIK MİKTARLARI'!D10=0,'2. TOPLANAN ATIK MİKTARLARI'!D10)","v":0},{"$f":"E10/$E$21","v":{"$error":"#DIV/0!"}},{"$f":"'2. TOPLANAN ATIK MİKTARLARI'!G10","v":0},{"$f":"D10-C10","v":0},{"$f":"E10*G10","v":0},{"$f":"C10/D10","v":{"$error":"#DIV/0!"}},{"$f":"IFERROR((I10*(1-J10))/J10,0)","v":0},{"$f":"IFERROR(IF(J10=0,K10,I10/J10),0)","v":0},{"$f":"L10-I10","v":0},{"$f":"M10/L10","v":{"$error":"#DIV/0!"}}]
[2,{"$f":"'2. TOPLANAN ATIK MİKTARLARI'!B11","v":"Kamu alanlarından kaynaklanan belediye atığı"},{"$f":"'2. TOPLANAN ATIK MİKTARLARI'!C11","v":0},null,{"$f":"IF('2. TOPLANAN ATIK MİKTARLARI'!H11=FALSE,'2. TOPLANAN ATIK MİKTARLARI'!D11=0,'2. TOPLANAN ATIK MİKTARLARI'!D11)","v":0},{"$error":"#DIV/0!"},{"$f":"'2. TOPLANAN ATIK MİKTARLARI'!G11","v":0},{"$f":"D11-C11","v":0},0,{"$f":"C11/D11","v":{"$error":"#DIV/0!"}},{"$f":"IFERROR((I11*(1-J11))/J11,0)","v":0},{"$f":"IFERROR(IF(J11=0,K11,I11/J11),0)","v":0},{"$f":"L11-I11","v":0},{"$error":"#DIV/0!"}]
[3,{"$f":"'2. TOPLANAN ATIK MİKTARLARI'!B12","v":"Hacimli belediye atığı"},{"$f":"'2. TOPLANAN ATIK MİKTARLARI'!C12","v":0},null,{"$f":"IF('2. TOPLANAN ATIK MİKTARLARI'!H12=FALSE,'2. TOPLANAN ATIK MİKTARLARI'!D12=0,'2. TOPLANAN ATIK MİKTARLARI'!D12)","v":0},{"$error":"#DIV/0!"},{"$f":"'2. TOPLANAN ATIK MİKTARLARI'!G12","v":0},0,{"$f":"E12*G12","v":0},{"$error":"#DIV/0!"},0,0,0,{"$error":"#DIV/0!"}]
[4,{"$f":"'2. TOPLANAN ATIK MİKTARLARI'!B13","v":"Ticari kuruluşlar"},{"$f":"'2. TOPLANAN ATIK MİKTARLARI'!C13","v":0},null,{"$f":"IF('2. TOPLANAN ATIK MİKTARLARI'!H13=FALSE,'2. TOPLANAN ATIK MİKTARLARI'!D13=0,'2. TOPLANAN ATIK MİKTARLARI'!D13)","v":0},{"$error":"#DIV/0!"},{"$f":"'2. TOPLANAN ATIK MİKTARLARI'!G13","v":0},0,0,{"$error":"#DIV/0!"},0,0,0,{"$error":"#DIV/0!"}]
[5,{"$f":"'2. TOPLANAN ATIK MİKTARLARI'!B14","v":"Kurumlar  (Belediye ve diğer)"},{"$f":"'2. TOPLANAN ATIK MİKTARLARI'!C14","v":0},null,{"$f":"IF('2. TOPLANAN ATIK MİKTARLARI'!H14=FALSE,'2. TOPLANAN ATIK MİKTARLARI'!D14=0,'2. TOPLANAN ATIK MİKTARLARI'!D14)","v":0},{"$error":"#DIV/0!"},{"$f":"'2. TOPLANAN ATIK MİKTARLARI'!G14","v":0},0,0,{"$error":"#DIV/0!"},0,0,0,{"$error":"#DIV/0!"}]
[6,{"$f":"'2. TOPLANAN ATIK MİKTARLARI'!B15","v":"Tehlikesiz sanayi atıkları "},{"$f":"'2. TOPLANAN ATIK MİKTARLARI'!C15","v":0},null,{"$f":"IF('2. TOPLANAN ATIK MİKTARLARI'!H15=FALSE,'2. TOPLANAN ATIK MİKTARLARI'!D15=0,'2. TOPLANAN ATIK MİKTARLARI'!D15)","v":0},{"$error":"#DIV/0!"},{"$f":"'2. TOPLANAN ATIK MİKTARLARI'!G15","v":0},0,0,{"$error":"#DIV/0!"},0,0,0,{"$error":"#DIV/0!"}]
[7,{"$f":"'2. TOPLANAN ATIK MİKTARLARI'!B16","v":"İnşaat atığı"},{"$f":"'2. TOPLANAN ATIK MİKTARLARI'!C16","v":0},null,{"$f":"IF('2. TOPLANAN ATIK MİKTARLARI'!H16=FALSE,'2. TOPLANAN ATIK MİKTARLARI'!D16=0,'2. TOPLANAN ATIK MİKTARLARI'!D16)","v":0},{"$error":"#DIV/0!"},{"$f":"'2. TOPLANAN ATIK MİKTARLARI'!G16","v":0},0,0,{"$error":"#DIV/0!"},0,0,0,{"$error":"#DIV/0!"}]
[8,{"$f":"'2. TOPLANAN ATIK MİKTARLARI'!B17","v":"Tarımsal organik atık"},{"$f":"'2. TOPLANAN ATIK MİKTARLARI'!C17","v":0},null,{"$f":"IF('2. TOPLANAN ATIK MİKTARLARI'!H17=FALSE,'2. TOPLANAN ATIK MİKTARLARI'!D17=0,'2. TOPLANAN ATIK MİKTARLARI'!D17)","v":0},{"$error":"#DIV/0!"},{"$f":"'2. TOPLANAN ATIK MİKTARLARI'!G17","v":0},0,0,{"$error":"#DIV/0!"},0,0,0,{"$error":"#DIV/0!"}]
[9,{"$f":"'2. TOPLANAN ATIK MİKTARLARI'!B18","v":"Diğer"},{"$f":"'2. TOPLANAN ATIK MİKTARLARI'!C18","v":0},null,{"$f":"IF('2. TOPLANAN ATIK MİKTARLARI'!H18=FALSE,'2. TOPLANAN ATIK MİKTARLARI'!D18=0,'2. TOPLANAN ATIK MİKTARLARI'!D18)","v":0},{"$error":"#DIV/0!"},{"$f":"'2. TOPLANAN ATIK MİKTARLARI'!G18","v":0},0,0,{"$error":"#DIV/0!"},0,0,0,{"$error":"#DIV/0!"}]
[10,{"$f":"'2. TOPLANAN ATIK MİKTARLARI'!B19","v":"Diğer"},{"$f":"'2. TOPLANAN ATIK MİKTARLARI'!C19","v":0},null,{"$f":"IF('2. TOPLANAN ATIK MİKTARLARI'!H19=FALSE,'2. TOPLANAN ATIK MİKTARLARI'!D19=0,'2. TOPLANAN ATIK MİKTARLARI'!D19)","v":0},{"$f":"E19/$E$21","v":{"$error":"#DIV/0!"}},{"$f":"'2. TOPLANAN ATIK MİKTARLARI'!G19","v":0},{"$f":"D19-C19","v":0},{"$f":"E19*G19","v":0},{"$f":"C19/D19","v":{"$error":"#DIV/0!"}},0,0,{"$f":"L19-I19","v":0},{"$f":"M19/L19","v":{"$error":"#DIV/0!"}}]
[11,{"$f":"'2. TOPLANAN ATIK MİKTARLARI'!B20","v":"Diğer"},{"$f":"'2. TOPLANAN ATIK MİKTARLARI'!C20","v":0},null,{"$f":"IF('2. TOPLANAN ATIK MİKTARLARI'!H20=FALSE,'2. TOPLANAN ATIK MİKTARLARI'!D20=0,'2. TOPLANAN ATIK MİKTARLARI'!D20)","v":0},{"$error":"#DIV/0!"},{"$f":"'2. TOPLANAN ATIK MİKTARLARI'!G20","v":0},0,0,{"$error":"#DIV/0!"},0,0,0,{"$error":"#DIV/0!"}]
[null,"TOPLAM",null,null,{"$f":"SUM(E10:E20)","v":0},null,null,null,{"$f":"SUM(I10:I20)","v":0},null,{"$f":"SUM(K10:K20)","v":0},{"$f":"SUM(L10:L20)","v":0},{"$f":"SUM(M10:M20)","v":0},{"$f":"M21/L21","v":{"$error":"#DIV/0!"}}]
[]
[null,"ANA SAYFA",null,"Notlar: "]

{"sheet":"4. ATIK KOMPOZİSYONU","index":4,"n_rows":24,"n_cols":9,"rows_kept":24,"cut":false,"hidden":false,"merged":[[1,1,1,5],[1,7,1,11],[0,1,0,2],[23,1,25,3],[23,5,38,13]]}
[null,{"$f":"'2. TOPLANAN ATIK MİKTARLARI'!B1","v":"BELEDİYE"},null,{"$f":"'2. TOPLANAN ATIK MİKTARLARI'!C1","v":"Verilerin zamanı - Yıl"},{"$f":"'2. TOPLANAN ATIK MİKTARLARI'!E1:F1","v":0}]
[null,{"$f":"'2. TOPLANAN ATIK MİKTARLARI'!B2","v":0}]
[]
[null,1,2,3,4,5]
[null,"KARIŞIK BELEDİYE (EVSEL) ATIK YAPISI (BİLEŞİMİ)","Tahmini ortalama içerik","Toplanan atık miktarları (ton)","Üretilen atık miktarları (ton) ","Kontrol edilmeyen miktarlar (ton)",null,null,"Estimated Average Density t/m3"]
[1,"Bahçe atıkları",null,{"$f":"'2. TOPLANAN ATIK MİKTARLARI'!$H$21*C6","v":0},{"$f":"'3. OLUŞAN ATIK MİKTARLARI'!$L$21*C6","v":0},{"$f":"E6-D6","v":0},null,null,0.1]
[2,"Diğer biyoçözünür atıklar",null,{"$f":"'2. TOPLANAN ATIK MİKTARLARI'!$H$21*C7","v":0},{"$f":"'3. OLUŞAN ATIK MİKTARLARI'!$L$21*C7","v":0},{"$f":"E7-D7","v":0},null,null,0.14399999999999999]
[3,"Kağıt ",null,{"$f":"'2. TOPLANAN ATIK MİKTARLARI'!$H$21*C8","v":0},{"$f":"'3. OLUŞAN ATIK MİKTARLARI'!$L$21*C8","v":0},0,null,null,0.33300000000000002]
[4,"Cam",null,{"$f":"'2. TOPLANAN ATIK MİKTARLARI'!$H$21*C9","v":0},{"$f":"'3. OLUŞAN ATIK MİKTARLARI'!$L$21*C9","v":0},0,null,null,0.64]
[5,"Karton",null,{"$f":"'2. TOPLANAN ATIK MİKTARLARI'!$H$21*C10","v":0},{"$f":"'3. OLUŞAN ATIK MİKTARLARI'!$L$21*C10","v":0},0,null,null,0.57569999999999999]
[6,"Parlak karton",null,{"$f":"'2. TOPLANAN ATIK MİKTARLARI'!$H$21*C11","v":0},{"$f":"'3. OLUŞAN ATIK MİKTARLARI'!$L$21*C11","v":0},0,null,null,0.32]
[7,"Alüminyumlu karton",null,{"$f":"'2. TOPLANAN ATIK MİKTARLARI'!$H$21*C12","v":0},{"$f":"'3. OLUŞAN ATIK MİKTARLARI'!$L$21*C12","v":0},0,null,null,0.1]
[8,"Metal  ambalaj ve diğerleri",null,{"$f":"'2. TOPLANAN ATIK MİKTARLARI'!$H$21*C13","v":0},{"$f":"'3. OLUŞAN ATIK MİKTARLARI'!$L$21*C13","v":0},0]
[9,"Alüminyum kutular",null,{"$f":"'2. TOPLANAN ATIK MİKTARLARI'!$H$21*C14","v":0},{"$f":"'3. OLUŞAN ATIK MİKTARLARI'!$L$21*C14","v":0},0,null,null,0.17599999999999999]
[10,"Plastik ambalaj atığı",null,{"$f":"'2. TOPLANAN ATIK MİKTARLARI'!$H$21*C15","v":0},{"$f":"'3. OLUŞAN ATIK MİKTARLARI'!$L$21*C15","v":0},0,null,null,0.129]
[11,"Plastik poşetler",null,{"$f":"'2. TOPLANAN ATIK MİKTARLARI'!$H$21*C16","v":0},{"$f":"'3. OLUŞAN ATIK MİKTARLARI'!$L$21*C16","v":0},0,null,null,0.224]
[12,"Sert plastic",null,{"$f":"'2. TOPLANAN ATIK MİKTARLARI'!$H$21*C17","v":0},{"$f":"'3. OLUŞAN ATIK MİKTARLARI'!$L$21*C17","v":0},0,null,null,0.1]
[13,"Tekstil",null,{"$f":"'2. TOPLANAN ATIK MİKTARLARI'!$H$21*C18","v":0},{"$f":"'3. OLUŞAN ATIK MİKTARLARI'!$L$21*C18","v":0},0]
[14,"Deri",null,{"$f":"'2. TOPLANAN ATIK MİKTARLARI'!$H$21*C19","v":0},{"$f":"'3. OLUŞAN ATIK MİKTARLARI'!$L$21*C19","v":0},0]
[15,"Bebek bezleri",null,{"$f":"'2. TOPLANAN ATIK MİKTARLARI'!$H$21*C20","v":0},{"$f":"'3. OLUŞAN ATIK MİKTARLARI'!$L$21*C20","v":0},0]
[16,"Ince maddeler (<20mm)",null,{"$f":"'2. TOPLANAN ATIK MİKTARLARI'!$H$21*C21","v":0},{"$f":"'3. OLUŞAN ATIK MİKTARLARI'!$L$21*C21","v":0},0]
[null,"TOPLAM",{"$f":"SUM(C6:C21)","v":0},{"$f":"SUM(D6:D21)","v":0},{"$f":"SUM(E6:E21)","v":0},{"$f":"SUM(F6:F21)","v":0}]
[]
[null,"ANA SAYFA",null,null,null,"Notlar:"]

{"sheet":"5. DUZENLi DEPOLAMA","index":5,"n_rows":34,"n_cols":18,"rows_kept":34,"cut":false,"hidden":true,"merged":[[0,5,0,6],[1,1,1,3],[0,1,0,3],[25,1,25,2],[24,6,24,7],[3,1,3,10],[24,1,24,2],[25,5,31,10],[31,1,31,2],[0,8,0,25],[1,8,1,16],[33,1,34,2],[27,1,27,2],[26,1,26,2],[28,1,28,2],[29,1,29,2],[30,1,30,2]]}
[null,{"$f":"'2. TOPLANAN ATIK MİKTARLARI'!B1","v":"BELEDİYE"},null,null,{"$f":"'2. TOPLANAN ATIK MİKTARLARI'!C1","v":"Verilerin zamanı - Yıl"},{"$f":"'4. ATIK KOMPOZİSYONU'!E1","v":0},null,null,"Bu çalışma dosyası ancak belediyede atık ayırma yoksa doldurulur/kullanılır. Lütfen kullanıcı el kitabını dikkate alınız."]
[null,{"$f":"'2. TOPLANAN ATIK MİKTARLARI'!B2","v":0},null,null,null,null,null,null,"Belediyede atık ayırma işlemi var mı?",null,null,null,null,null,null,null,null,"Yes"]
[]
[null,"BELEDİYE ATIKLARININ BERTARAFI VE DÜZENLİ DEPOLAMA ALANLARININ KULLANIM SÜRELERİ (SİSTEMLİ AYIRMA OLMAKSIZIN)"]
[null,1,2,3,4,5,6,7,8,9,10]
[null,"KARIŞIK BELEDİYE ATIKLARI YAPISI",{"$f":"'4. ATIK KOMPOZİSYONU'!C5","v":"Tahmini ortalama içerik"},"Toplanan atık miktarları (ton)","Toplamın yüzdesi olarak toplanan geleneksel depolama sahasında depolanan atık (%)  ","Toplanan geleneksel depolama sahasında depolanan  atık miktarları (ton)","Toplamın yüzdesi olarak toplanan kontrollü (düzenli) depolama sahasında depolanan atık (%)  ","Toplanan kontrollü depolama sahasında depolanan  atık ","Toplamın yüzdesi olarak toplanan enerji geri kazanımı olmaksızın yakılan atık  (%)","Toplanan enerji geri kazanımı olmaksızın yakılan atık miktarları (ton)   ","Bertaraf edilen toplam atık (4+6)"]
[1,{"$f":"'4. ATIK KOMPOZİSYONU'!B6","v":"Bahçe atıkları"},{"$f":"'4. ATIK KOMPOZİSYONU'!C6","v":0},{"$f":"'2. TOPLANAN ATIK MİKTARLARI'!$H$21*C7","v":0},null,{"$f":"D7*E7","v":0},null,{"$f":"D7*G7","v":0},null,{"$f":"D7*I7","v":0},{"$f":"E7+G7+I7","v":0}]
[2,{"$f":"'4. ATIK KOMPOZİSYONU'!B7","v":"Diğer biyoçözünür atıklar"},{"$f":"'4. ATIK KOMPOZİSYONU'!C7","v":0},{"$f":"'2. TOPLANAN ATIK MİKTARLARI'!$H$21*C8","v":0},null,{"$f":"D8*E8","v":0},null,{"$f":"D8*G8","v":0},null,0,0]
[3,{"$f":"'4. ATIK KOMPOZİSYONU'!B8","v":"Kağıt "},{"$f":"'4. ATIK KOMPOZİSYONU'!C8","v":0},{"$f":"'2. TOPLANAN ATIK MİKTARLARI'!$H$21*C9","v":0},null,0,null,0,null,0,0]
[4,{"$f":"'4. ATIK KOMPOZİSYONU'!B9","v":"Cam"},{"$f":"'4. ATIK KOMPOZİSYONU'!C9","v":0},{"$f":"'2. TOPLANAN ATIK MİKTARLARI'!$H$21*C10","v":0},null,0,null,0,null,0,0]
[5,{"$f":"'4. ATIK KOMPOZİSYONU'!B10","v":"Karton"},{"$f":"'4. ATIK KOMPOZİSYONU'!C10","v":0},{"$f":"'2. TOPLANAN ATIK MİKTARLARI'!$H$21*C11","v":0},null,0,null,0,null,0,0]
[6,{"$f":"'4. ATIK KOMPOZİSYONU'!B11","v":"Parlak karton"},{"$f":"'4. ATIK KOMPOZİSYONU'!C11","v":0},{"$f":"'2. TOPLANAN ATIK MİKTARLARI'!$H$21*C12","v":0},null,0,null,0,null,0,0]
[7,{"$f":"'4. ATIK KOMPOZİSYONU'!B12","v":"Alüminyumlu karton"},{"$f":"'4. ATIK KOMPOZİSYONU'!C12","v":0},{"$f":"'2. TOPLANAN ATIK MİKTARLARI'!$H$21*C13","v":0},null,0,null,0,null,0,0]
[8,{"$f":"'4. ATIK KOMPOZİSYONU'!B13","v":"Metal  ambalaj ve diğerleri"},{"$f":"'4. ATIK KOMPOZİSYONU'!C13","v":0},{"$f":"'2. TOPLANAN ATIK MİKTARLARI'!$H$21*C14","v":0},null,0,null,0,null,0,0]
[9,{"$f":"'4. ATIK KOMPOZİSYONU'!B14","v":"Alüminyum kutular"},{"$f":"'4. ATIK KOMPOZİSYONU'!C14","v":0},{"$f":"'2. TOPLANAN ATIK MİKTARLARI'!$H$21*C15","v":0},null,0,null,0,null,0,0]
[10,{"$f":"'4. ATIK KOMPOZİSYONU'!B15","v":"Plastik ambalaj atığı"},{"$f":"'4. ATIK KOMPOZİSYONU'!C15","v":0},{"$f":"'2. TOPLANAN ATIK MİKTARLARI'!$H$21*C16","v":0},null,0,null,0,null,0,0]
[11,{"$f":"'4. ATIK KOMPOZİSYONU'!B16","v":"Plastik poşetler"},{"$f":"'4. ATIK KOMPOZİSYONU'!C16","v":0},{"$f":"'2. TOPLANAN ATIK MİKTARLARI'!$H$21*C17","v":0},null,0,null,0,null,0,0]
[12,{"$f":"'4. ATIK KOMPOZİSYONU'!B17","v":"Sert plastic"},{"$f":"'4. ATIK KOMPOZİSYONU'!C17","v":0},{"$f":"'2. TOPLANAN ATIK MİKTARLARI'!$H$21*C18","v":0},null,0,null,0,null,0,0]
[13,{"$f":"'4. ATIK KOMPOZİSYONU'!B18","v":"Tekstil"},{"$f":"'4. ATIK KOMPOZİSYONU'!C18","v":0},{"$f":"'2. TOPLANAN ATIK MİKTARLARI'!$H$21*C19","v":0},null,0,null,0,null,0,0]
[14,{"$f":"'4. ATIK KOMPOZİSYONU'!B19","v":"Deri"},{"$f":"'4. ATIK KOMPOZİSYONU'!C19","v":0},{"$f":"'2. TOPLANAN ATIK MİKTARLARI'!$H$21*C20","v":0},null,0,null,0,null,0,0]
[15,{"$f":"'4. ATIK KOMPOZİSYONU'!B20","v":"Bebek bezleri"},{"$f":"'4. ATIK KOMPOZİSYONU'!C20","v":0},{"$f":"'2. TOPLANAN ATIK MİKTARLARI'!$H$21*C21","v":0},null,0,null,0,null,0,0]
[16,{"$f":"'4. ATIK KOMPOZİSYONU'!B21","v":"Ince maddeler (<20mm)"},{"$f":"'4. ATIK KOMPOZİSYONU'!C21","v":0},{"$f":"'2. TOPLANAN ATIK MİKTARLARI'!$H$21*C22","v":0},null,0,null,0,null,0,0]
[null,"YILLIK TOPLAM",{"$f":"'4. ATIK KOMPOZİSYONU'!C22","v":0},{"$f":"SUM(D7:D22)","v":0},null,{"$f":"SUM(F7:F22)","v":0},null,{"$f":"SUM(H7:H22)","v":0},null,{"$f":"SUM(J7:J22)","v":0},{"$f":"F23+H23","v":0}]
[null,"Toplam'ın %",null,null,null,{"$f":"F23/D23","v":{"$error":"#DIV/0!"}},null,{"$f":"H23/D23","v":{"$error":"#DIV/0!"}},null,{"$f":"J23/D23","v":{"$error":"#DIV/0!"}},{"$f":"F24+H24+J24","v":{"$error":"#DIV/0!"}}]
[null,"Depolama Alanlarının Kullanım Ömrü (vahşi veya düzenli)"]
[17,"Depolama sahasının bir yılda işletildiği gün sayısı  ",null,null,null,"Notlar:"]
[18,"Yakma olmaksızın günlük depolanan ortalama atık miktarı (ton) ",null,{"$f":"D23/D26","v":{"$error":"#DIV/0!"}}]
[19,"Toplam öngörülen depolama sahası kapasitesi (ton)"]
[20,"Mevcut depolama sahasının bugüne kadar kullanılan kapasitesi"]
[21,"Kalan kapasite (ton)",null,{"$f":"D28*(1-D29)","v":0}]
[22,"Yakma ile birlikte mevcut depolama oranı ile kalan depolama sahası ömrü (yıl)",null,{"$f":"D30/K23","v":{"$error":"#DIV/0!"}}]
[23,"Yakma olmaksızın mevcut depolama oranı ile kalan depolama sahası ömrü (yıl)",null,{"$f":"D30/D23","v":{"$error":"#DIV/0!"}}]
[]
[null,"ANA SAYFA"]

{"sheet":"6. ATIK GERI KAZANIMI","index":6,"n_rows":42,"n_cols":25,"rows_kept":42,"cut":false,"hidden":false,"merged":[[41,4,61,19],[34,1,36,3],[25,16,25,24],[22,20,23,20],[22,18,23,18],[22,6,23,6],[22,8,23,8],[22,4,23,4],[4,0,5,1],[24,1,24,4],[1,1,1,4],[24,22,24,24],[0,1,0,3],[23,23,23,24],[4,23,5,24],[22,23,22,24],[22,0,22,1],[3,3,3,22],[23,0,23,1],[22,16,23,16],[1,8,1,16],[0,8,0,24]]}
[null,{"$f":"'2. TOPLANAN ATIK MİKTARLARI'!B1","v":"BELEDİYE"},null,null,{"$f":"'5. DUZENLi DEPOLAMA'!E1","v":"Verilerin zamanı - Yıl"},{"$f":"'5. DUZENLi DEPOLAMA'!F1:G1","v":0},null,null,"Bu çalışma dosyası ancak belediyede atık ayırma yoksa doldurulur/kullanılır. Lütfen kullanıcı el kitabını dikkate alınız."]
[null,{"$f":"'2. TOPLANAN ATIK MİKTARLARI'!B2","v":0},null,null,null,null,null,null,"Belediyede atık ayırma işlemi var mı?",null,null,null,null,null,null,null,null,"Yes"]
[]
[null,null,null,"ORGANISED SEPARATION - MUNICIPAL WASTE SEPARATED AND WASTE DEPOSITED - WASTE RECOVERY, TREATMENT AND LANDFILL LIFETIME "]
["KARIŞIK BELEDİYE ATIKLARI YAPISI",null,null,1,2,3,4,5,6,7,8,9,10,11,12,null,13,14,15,16,17,18,19]
[null,null,"Estimated Average Content ","Toplanan atık miktarları (ton)","Toplamın yüzdesi olarak kaynakta ayrıştırılan belediye atığı (%)  ","Kaynakta ayrıştırılan belediye atığı miktarları  (ton)","Toplamın yüzdesi olarak toplanan depolama sahasında ayrıştırılan atık (%)","Depolama sahasında ayrıştırılan atık miktarları (ton)","Toplam toplananın  yüzdesi olarak ayrıştırılan","Ayrıştırılan atık miktarları (ton) ","Toplam ayrıştırılan atığın yapısı","Toplamın yüzdesi olarak toplanan depolama sahasında depolanan atık (%) ","Toplanan depolama sahasında depolanan atık miktarları (ton) ","Toplamın yüzdesi olarak ayrıştırma yapıldıktan sonra depolama sahasında depolanan toplam","Ayrıştırılan ve depolanan atığın toplam yüzdesi (%)",null,"Toplam ayrıştırılanın yüzdesi olarak geri dönüşüm için pazarlanan veya bu amaçlar için stokta tutulan ayrıştırılan atık (%) ","Geri dönüştürülen ve pazarlanan ayrıştırılan atık (ton)","Toplam ayrıştırılanın yüzdesi olarak enerji geri kazanımı ile yakılan ayrıştırılan atık (%) ","Enerji geri kazanımı ile yakılan ayrıştırılan atık (ton)","Toplam ayrıştırılanın yüzdesi olarak kompostlaştırılan ayrıştırılan atık (%) ","Kompostlaştırılan ayrıştırılan atık (ton)","Ayrıştırılan atığın toplam yüzdesi (%) "]
[1,{"$f":"'4. ATIK KOMPOZİSYONU'!B6","v":"Bahçe atıkları"},{"$f":"'4. ATIK KOMPOZİSYONU'!C6","v":0},{"$f":"'2. TOPLANAN ATIK MİKTARLARI'!$H$21*C7","v":0},null,{"$f":"D7*E7","v":0},null,{"$f":"D7*G7","v":0},{"$f":"E7+G7","v":0},{"$f":"F7+H7","v":0},{"$f":"J7/J$23","v":{"$error":"#DIV/0!"}},null,{"$f":"D7*L7","v":0},{"$f":"M7/M$23","v":{"$error":"#DIV/0!"}},{"$f":"E7+G7+L7","v":0},null,null,{"$f":"(F7+H7)*Q7","v":0},null,{"$f":"(H7+F7)*S7","v":0},null,{"$f":"(F7+H7)*U7","v":0},{"$f":"Q7+S7+U7","v":0},1,{"$f":"'4. ATIK KOMPOZİSYONU'!B6","v":"Bahçe atıkları"}]
[2,{"$f":"'4. ATIK KOMPOZİSYONU'!B7","v":"Diğer biyoçözünür atıklar"},{"$f":"'4. ATIK KOMPOZİSYONU'!C7","v":0},{"$f":"'2. TOPLANAN ATIK MİKTARLARI'!$H$21*C8","v":0},null,{"$f":"D8*E8","v":0},null,{"$f":"D8*G8","v":0},{"$f":"E8+G8","v":0},{"$f":"F8+H8","v":0},{"$f":"J8/J$23","v":{"$error":"#DIV/0!"}},null,{"$f":"D8*L8","v":0},{"$f":"M8/M$23","v":{"$error":"#DIV/0!"}},0,null,null,0,null,{"$f":"(H8+F8)*S8","v":0},null,{"$f":"(F8+H8)*U8","v":0},{"$f":"Q8+S8+U8","v":0},2,{"$f":"'4. ATIK KOMPOZİSYONU'!B7","v":"Diğer biyoçözünür atıklar"}]
[3,{"$f":"'4. ATIK KOMPOZİSYONU'!B8","v":"Kağıt "},{"$f":"'4. ATIK KOMPOZİSYONU'!C8","v":0},{"$f":"'2. TOPLANAN ATIK MİKTARLARI'!$H$21*C9","v":0},null,0,null,0,0,0,{"$error":"#DIV/0!"},null,0,{"$error":"#DIV/0!"},0,null,null,0,null,0,null,0,0,3,{"$f":"'4. ATIK KOMPOZİSYONU'!B8","v":"Kağıt "}]
[4,{"$f":"'4. ATIK KOMPOZİSYONU'!B9","v":"Cam"},{"$f":"'4. ATIK KOMPOZİSYONU'!C9","v":0},{"$f":"'2. TOPLANAN ATIK MİKTARLARI'!$H$21*C10","v":0},null,0,null,0,0,0,{"$error":"#DIV/0!"},null,0,{"$error":"#DIV/0!"},0,null,null,0,null,0,null,0,0,4,{"$f":"'4. ATIK KOMPOZİSYONU'!B9","v":"Cam"}]
[5,{"$f":"'4. ATIK KOMPOZİSYONU'!B10","v":"Karton"},{"$f":"'4. ATIK KOMPOZİSYONU'!C10","v":0},{"$f":"'2. TOPLANAN ATIK MİKTARLARI'!$H$21*C11","v":0},null,0,null,0,0,0,{"$error":"#DIV/0!"},null,0,{"$error":"#DIV/0!"},0,null,null,0,null,0,null,0,0,5,{"$f":"'4. ATIK KOMPOZİSYONU'!B10","v":"Karton"}]
[6,{"$f":"'4. ATIK KOMPOZİSYONU'!B11","v":"Parlak karton"},{"$f":"'4. ATIK KOMPOZİSYONU'!C11","v":0},{"$f":"'2. TOPLANAN ATIK MİKTARLARI'!$H$21*C12","v":0},null,0,null,0,0,0,{"$error":"#DIV/0!"},null,0,{"$error":"#DIV/0!"},0,null,null,0,null,0,null,0,0,6,{"$f":"'4. ATIK KOMPOZİSYONU'!B11","v":"Parlak karton"}]
[7,{"$f":"'4. ATIK KOMPOZİSYONU'!B12","v":"Alüminyumlu karton"},{"$f":"'4. ATIK KOMPOZİSYONU'!C12","v":0},{"$f":"'2. TOPLANAN ATIK MİKTARLARI'!$H$21*C13","v":0},null,0,null,0,0,0,{"$error":"#DIV/0!"},null,0,{"$error":"#DIV/0!"},0,null,null,0,null,0,null,0,0,7,{"$f":"'4. ATIK KOMPOZİSYONU'!B12","v":"Alüminyumlu karton"}]
[8,{"$f":"'4. ATIK KOMPOZİSYONU'!B13","v":"Metal  ambalaj ve diğerleri"},{"$f":"'4. ATIK KOMPOZİSYONU'!C13","v":0},{"$f":"'2. TOPLANAN ATIK MİKTARLARI'!$H$21*C14","v":0},null,0,null,0,0,0,{"$error":"#DIV/0!"},null,0,{"$error":"#DIV/0!"},0,null,null,0,null,0,null,0,0,8,{"$f":"'4. ATIK KOMPOZİSYONU'!B13","v":"Metal  ambalaj ve diğerleri"}]
[9,{"$f":"'4. ATIK KOMPOZİSYONU'!B14","v":"Alüminyum kutular"},{"$f":"'4. ATIK KOMPOZİSYONU'!C14","v":0},{"$f":"'2. TOPLANAN ATIK MİKTARLARI'!$H$21*C15","v":0},null,0,null,0,0,0,{"$error":"#DIV/0!"},null,0,{"$error":"#DIV/0!"},0,null,null,0,null,0,null,0,0,9,{"$f":"'4. ATIK KOMPOZİSYONU'!B14","v":"Alüminyum kutular"}]
[10,{"$f":"'4. ATIK KOMPOZİSYONU'!B15","v":"Plastik ambalaj atığı"},{"$f":"'4. ATIK KOMPOZİSYONU'!C15","v":0},{"$f":"'2. TOPLANAN ATIK MİKTARLARI'!$H$21*C16","v":0},null,0,null,0,0,0,{"$error":"#DIV/0!"},null,0,{"$error":"#DIV/0!"},0,null,null,0,null,0,null,0,0,10,{"$f":"'4. ATIK KOMPOZİSYONU'!B15","v":"Plastik ambalaj atığı"}]
[11,{"$f":"'4. ATIK KOMPOZİSYONU'!B16","v":"Plastik poşetler"},{"$f":"'4. ATIK KOMPOZİSYONU'!C16","v":0},{"$f":"'2. TOPLANAN ATIK MİKTARLARI'!$H$21*C17","v":0},null,0,null,0,0,0,{"$error":"#DIV/0!"},null,0,{"$error":"#DIV/0!"},0,null,null,0,null,0,null,0,0,11,{"$f":"'4. ATIK KOMPOZİSYONU'!B16","v":"Plastik poşetler"}]
[12,{"$f":"'4. ATIK KOMPOZİSYONU'!B17","v":"Sert plastic"},{"$f":"'4. ATIK KOMPOZİSYONU'!C17","v":0},{"$f":"'2. TOPLANAN ATIK MİKTARLARI'!$H$21*C18","v":0},null,0,null,0,0,0,{"$error":"#DIV/0!"},null,0,{"$error":"#DIV/0!"},0,null,null,0,null,0,null,0,0,12,{"$f":"'4. ATIK KOMPOZİSYONU'!B17","v":"Sert plastic"}]
[13,{"$f":"'4. ATIK KOMPOZİSYONU'!B18","v":"Tekstil"},{"$f":"'4. ATIK KOMPOZİSYONU'!C18","v":0},{"$f":"'2. TOPLANAN ATIK MİKTARLARI'!$H$21*C19","v":0},null,0,null,0,0,{"$f":"F19+H19","v":0},{"$f":"J19/J$23","v":{"$error":"#DIV/0!"}},null,0,{"$error":"#DIV/0!"},0,null,null,0,null,0,null,0,0,13,{"$f":"'4. ATIK KOMPOZİSYONU'!B18","v":"Tekstil"}]
[14,{"$f":"'4. ATIK KOMPOZİSYONU'!B19","v":"Deri"},{"$f":"'4. ATIK KOMPOZİSYONU'!C19","v":0},{"$f":"'2. TOPLANAN ATIK MİKTARLARI'!$H$21*C20","v":0},null,0,null,0,0,0,{"$error":"#DIV/0!"},null,0,{"$error":"#DIV/0!"},0,null,null,0,null,0,null,0,0,14,{"$f":"'4. ATIK KOMPOZİSYONU'!B19","v":"Deri"}]
[15,{"$f":"'4. ATIK KOMPOZİSYONU'!B20","v":"Bebek bezleri"},{"$f":"'4. ATIK KOMPOZİSYONU'!C20","v":0},{"$f":"'2. TOPLANAN ATIK MİKTARLARI'!$H$21*C21","v":0},null,0,null,0,0,0,{"$error":"#DIV/0!"},null,0,{"$error":"#DIV/0!"},0,null,null,0,null,0,null,0,0,15,{"$f":"'4. ATIK KOMPOZİSYONU'!B20","v":"Bebek bezleri"}]
[16,{"$f":"'4. ATIK KOMPOZİSYONU'!B21","v":"Ince maddeler (<20mm)"},{"$f":"'4. ATIK KOMPOZİSYONU'!C21","v":0},{"$f":"'2. TOPLANAN ATIK MİKTARLARI'!$H$21*C22","v":0},null,0,null,0,0,0,{"$error":"#DIV/0!"},null,0,{"$error":"#DIV/0!"},0,null,null,0,null,0,null,0,0,16,{"$f":"'4. ATIK KOMPOZİSYONU'!B21","v":"Ince maddeler (<20mm)"}]
["TOPLAM",null,{"$f":"SUM(C7:C22)","v":0},{"$f":"SUM(D7:D22)","v":0},null,{"$f":"SUM(F7:F22)","v":0},null,{"$f":"SUM(H7:H22)","v":0},null,{"$f":"SUM(J7:J22)","v":0},{"$error":"#DIV/0!"},null,{"$f":"SUM(M7:M22)","v":0},{"$f":"SUM(N7:N22)","v":{"$error":"#DIV/0!"}},{"$f":"F23+H23+M23","v":0},null,"Ayrılmış toplam atığın dışında kalanlar",{"$f":"SUM(R7:R22)","v":0},"Ayrılmış toplam atığın dışında kalanlar",{"$f":"SUM(T7:T22)","v":0},"Ayrılmış toplam atığın dışında kalanlar",{"$f":"SUM(V7:V22)","v":0},{"$f":"R23+T23+V23","v":0},"TOTAL"]
["Toplam'ın %",null,null,null,null,{"$f":"F23/D23","v":{"$error":"#DIV/0!"}},null,{"$f":"H23/D23","v":{"$error":"#DIV/0!"}},null,{"$f":"J23/D23","v":{"$error":"#DIV/0!"}},null,null,{"$f":"M23/D23","v":{"$error":"#DIV/0!"}},null,{"$f":"O23/D23","v":{"$error":"#DIV/0!"}},null,null,{"$f":"R23/(F23+H23)","v":{"$error":"#DIV/0!"}},null,{"$f":"T23/(F23+H23)","v":{"$error":"#DIV/0!"}},null,{"$f":"V23/(F23+H23)","v":{"$error":"#DIV/0!"}},{"$f":"R24+T24+V24","v":{"$error":"#DIV/0!"}},"% of TOTAL"]
[null,{"$f":"'5. DUZENLi DEPOLAMA'!B25:C25","v":"Depolama Alanlarının Kullanım Ömrü (vahşi veya düzenli)"}]
[17,"Depolama sahasının bir yılda işletildiği gün sayısı ",null,null,null,null,null,null,null,null,null,null,null,null,null,null," "]
[18,"Ayrıştırmadan önce depolanan günlük ortalama atık (ton)",null,{"$f":"D23/D26","v":{"$error":"#DIV/0!"}}]
[19,"Ayrıştırmadan sonra depolanan günlük ortalama atık (ton)",null,{"$f":"M23/D26","v":{"$error":"#DIV/0!"}}]
[20,"Toplam öngörülen depolama sahası kapasitesi (ton)"]
[21,{"$f":"'5. DUZENLi DEPOLAMA'!B29","v":"Mevcut depolama sahasının bugüne kadar kullanılan kapasitesi"}]
[22,"Kalan kapasite (ton)",null,{"$f":"D29*(1-D30)","v":0}]
[23,"Depolama sahası ömrü -  ayrıştırma, geri dönüşüm ve geri kazanım yapıldıktan sonra kalan yıllar",null,{"$f":"D31/M23","v":{"$error":"#DIV/0!"}}]
[24,"Depolama sahası ömrü - ayrıştırma veya yakma olmaksızın mevcut depolama oranı ile kalan yıllar",null,{"$f":"D31/D23","v":{"$error":"#DIV/0!"}}]
[]
[null,"ANA SAYFA"]
[]
[]
[]
[]
[]
[]
[null,null,null,null,"Notlar: "]

{"sheet":"7. TOPLAM MALİYET","index":7,"n_rows":27,"n_cols":15,"rows_kept":27,"cut":false,"hidden":false,"merged":[[4,9,6,9],[18,2,18,3],[21,2,21,3],[23,2,23,3],[16,2,16,3],[20,2,20,3],[17,2,17,3],[7,6,7,9],[7,1,7,3],[19,2,19,3],[0,14,7,22],[1,8,1,11],[4,10,4,13],[26,3,37,9],[26,1,28,1],[22,2,22,3],[24,2,24,3],[0,6,0,7],[13,2,13,3],[14,2,14,3],[15,2,15,3],[12,2,12,3],[8,2,8,3],[9,2,9,3],[10,2,10,3],[11,2,11,3]]}
[null,{"$f":"'2. TOPLANAN ATIK MİKTARLARI'!B1","v":"BELEDİYE"},null,{"$f":"'2. TOPLANAN ATIK MİKTARLARI'!C1","v":"Verilerin zamanı - Yıl"},{"$f":"'2. TOPLANAN ATIK MİKTARLARI'!E1:F1","v":0},null,"ORGANİZE ATIK HİZMETİ KAPSAMI",null,null,null,null,null,null,null,"Bu sayfa hizmetin finansal sürdürülebilirliğini gösteren bir göstergedir. Gelirler, giderler ve verimliliğin detaylandırılmış analizleri değiştirilmiş tarifelerden önce gereklidir."]
[null,{"$f":"'2. TOPLANAN ATIK MİKTARLARI'!B2","v":0},null,null,null,"a","Toplam nüfus (yerleşik halk) veya hane sayısı",{"$f":"SUM(H3:H4)","v":0},{"$f":"IF(H2='2. TOPLANAN ATIK MİKTARLARI'!C5,\" Sayfa 2’deki değer ile toplanan toplam atığı eşleştiriniz\",\"Does not Match Value in Sheet 2-Total Waste Collected\")","v":" Sayfa 2’deki değer ile toplanan toplam atığı eşleştiriniz"}]
[null,{"$f":"'2. TOPLANAN ATIK MİKTARLARI'!B3","v":"Alan (km2)"},{"$f":"'2. TOPLANAN ATIK MİKTARLARI'!C3","v":0},null,null,"b","Kentsel"]
[null,{"$f":"'2. TOPLANAN ATIK MİKTARLARI'!B4","v":"Toplam Nüfus (kişi)"},{"$f":"'2. TOPLANAN ATIK MİKTARLARI'!C4","v":0},null,null,"c","Kırsal"]
[null,{"$f":"'2. TOPLANAN ATIK MİKTARLARI'!B5","v":"Toplam Hane Sayısı (adet)"},{"$f":"'2. TOPLANAN ATIK MİKTARLARI'!C5","v":0},null,null,"d","Hizmet edilen toplam nüfus/hane sayısı",{"$f":"SUM(H6:H7)","v":0},{"$f":"H5/H2","v":{"$error":"#DIV/0!"}},"Hizmet kapsamı",{"$f":"IF(H5='2. TOPLANAN ATIK MİKTARLARI'!C10,\" Sayfa 2’deki değer ile toplanan toplam atığı eşleştiriniz\",\"Does not Match Value in Sheet 2-Total Waste Collected\")","v":" Sayfa 2’deki değer ile toplanan toplam atığı eşleştiriniz"}]
[null,{"$f":"'2. TOPLANAN ATIK MİKTARLARI'!B6","v":"Hane başına ortalama kişi sayısı"},{"$f":"'2. TOPLANAN ATIK MİKTARLARI'!C6","v":{"$error":"#DIV/0!"}},null,null,"e","Kentsel",null,{"$f":"H6/H3","v":{"$error":"#DIV/0!"}}]
[null,null,null,null,null,"f","Kırsal",null,{"$f":"H7/H4","v":{"$error":"#DIV/0!"}}]
[null,"GENEL VE FİNANSAL VERİLER",null,null,null,null,"TARİFELER"]
[1,"Kamu Hizmeti Şirketi - İşletmecisi İsim ve Konumu",null,null,null,1,"Hizmet edilen son kullanıcı","Mevcut Tarife. Hizmet edilen kullanıcı başına tarife faturalandırma politikasını belirtin  (aylık m2 veya m3 başına, kg/t başına, veya diğer) (₺)","Fatura birimi","% 100 gelir toplama sonucuna ulaşmak için gerekli tarife  (₺)","Tarife artış endeksi"]
[2,"Temel Faaliyetler ve Hizmetler ",null,null,null,2,null,null,null,{"$f":"H10/$C$12","v":{"$error":"#DIV/0!"}},{"$f":"J10/H10","v":{"$error":"#DIV/0!"}}]
[3,"Şirketin toplam gelirleri içerisinde Katı Atık Yönetimi (KAY) gelirlerinin payı (%)",null,null,null,3,null,null,null,{"$error":"#DIV/0!"},{"$error":"#DIV/0!"}]
[4,"Katı Atık Yönetimi (KAY) Hizmetleri'nden faturalanan/toplanan gelirlerin yüzdesi (%)        ",null,null,null,4,null,null,null,{"$error":"#DIV/0!"},{"$error":"#DIV/0!"}]
[5,"Katı Atık Yönetiminden (KAY) elde edilen yıllık toplam gelirler (₺)",null,null,null,5,null,null,null,{"$error":"#DIV/0!"},{"$error":"#DIV/0!"}]
[6,"Atık toplama ve taşıma ile ilgili  Toplam Yıllık Harcamalar (Malzeme maliyetleri, Maaşlar, Amortisman ve diğer maliyetler) (₺)",null,null,null,6,null,null,null,{"$error":"#DIV/0!"},{"$error":"#DIV/0!"}]
[7,"Yıllık işletme karı/zararı (₺)",{"$f":"C13-C14","v":0},null,null,7,null,null,null,{"$error":"#DIV/0!"},{"$error":"#DIV/0!"}]
[8,"İşletme zararını/veya işletme maliyetlerinin üzerindeki karları karşılamak için gerekli gelir artışı (- işareti)",{"$f":"C15/-C13","v":{"$error":"#DIV/0!"}},null,null,8,null,null,null,{"$error":"#DIV/0!"},{"$error":"#DIV/0!"}]
[9,"İşletme zararını (- işareti)/veya gelirlerin altındaki işletme maliyetini karşılamak için gerekli maliyet azaltımı  ",{"$f":"C15/C14","v":{"$error":"#DIV/0!"}},null,null,9,null,null,null,{"$error":"#DIV/0!"},{"$error":"#DIV/0!"}]
[10,"Yıllık toplanan toplam atık (ton) ",{"$f":"'2. TOPLANAN ATIK MİKTARLARI'!H21","v":0},null,null,10,null,null,null,{"$error":"#DIV/0!"},{"$error":"#DIV/0!"}]
[11,"Katı atık yönetiminde (KAY) çalışan idari personel dahil olmak üzere  toplam işçi sayısı",null,null,null,11,null,null,null,{"$error":"#DIV/0!"},{"$error":"#DIV/0!"}]
[12,"Katı atık yönetiminde (KAY) doğrudan faal olarak çalışan işçi sayısı ",null,null,null,12,null,null,null,{"$error":"#DIV/0!"},{"$error":"#DIV/0!"}]
[13,"İdari personelin işçi personele İstihdam Oranı 1:",{"$f":"C20/(C19-C20)","v":{"$error":"#DIV/0!"}},null,null,13,null,null,null,{"$error":"#DIV/0!"},{"$error":"#DIV/0!"}]
[14,"Katı atık yönetimindeki (KAY) bir işçi tarafından yıllık toplanan atık miktarı (ton)",{"$f":"C18/C19","v":{"$error":"#DIV/0!"}},null,null,14,null,null,null,{"$error":"#DIV/0!"},{"$error":"#DIV/0!"}]
[15,"Katı atık yönetimindeki (KAY) bir işçi tarafından hizmet edilen nüfus ",{"$f":"(H5/C19)","v":{"$error":"#DIV/0!"}},null,null,15,null,null,null,{"$error":"#DIV/0!"},{"$error":"#DIV/0!"}]
[16,"Hizmet edilen her 1000 kişiye karşılık gelen Katı atık yönetimi (KAY) işçi sayısı ",{"$f":"1000/C23","v":{"$error":"#DIV/0!"}},null,null,16,null,null,null,{"$error":"#DIV/0!"},{"$error":"#DIV/0!"}]
[17,"Mevcut Atık Toplama ve Taşıma Maliyeti (₺ /ton)",{"$f":"C14/C18","v":{"$error":"#DIV/0!"}},null,null,17,null,null,null,{"$error":"#DIV/0!"},{"$error":"#DIV/0!"}]
[]
[null,"ANA SAYFA",null,"Notlar:"]

{"sheet":"8. YATIRIM FİNANSMANI","index":8,"n_rows":72,"n_cols":10,"rows_kept":72,"cut":false,"hidden":false,"merged":[[3,1,3,9],[71,1,73,1],[64,3,66,3],[64,6,66,6],[59,1,59,5]]}
[null,{"$f":"'2. TOPLANAN ATIK MİKTARLARI'!B1","v":"BELEDİYE"},null,{"$f":"'2. TOPLANAN ATIK MİKTARLARI'!C1","v":"Verilerin zamanı - Yıl"},{"$f":"'2. TOPLANAN ATIK MİKTARLARI'!E1:F1","v":0}]
[null,{"$f":"'2. TOPLANAN ATIK MİKTARLARI'!B2","v":0}]
[]
[null,"EKİPMANLAR VE KAYNAKLAR (VARLIKLAR) İÇİN YATIRIMLAR"]
[]
[null,"OPERATOR - KURUM / KURULUŞUN ADI ",1,2,3,4,5,6,7,8]
[null,"Katı Atık Toplama ve Taşıma için Ekipman Türü ","Kullanımda olan mevcut birim adedi ","Planlanan yeni satın alma","Yeni birim satın alma fiyatı (₺)","Gerekli yatırım (₺) ","Amortisman oranı","Yıllık amortisman (aşınma payı)","Yıllık kredi hizmetleri için planlanan harcamalar","Yıllık amortisman ve kredi hizmeti"]
[1,"Konteynır 120 l",null,null,null,{"$f":"D8*E8","v":0},null,{"$f":"F8*G8","v":0},null,{"$f":"H8+I8","v":0}]
[2,"Konteynır 240 l",null,null,null,{"$f":"D9*E9","v":0},null,{"$f":"F9*G9","v":0},null,{"$f":"H9+I9","v":0}]
[3,"Konteynır 660 l",null,null,null,{"$f":"D10*E10","v":0},null,{"$f":"F10*G10","v":0},null,{"$f":"H10+I10","v":0}]
[4,"Konteynır 770 l",null,null,null,{"$f":"D11*E11","v":0},null,{"$f":"F11*G11","v":0},null,{"$f":"H11+I11","v":0}]
[5,"Konteynır 1100 l",null,null,null,0,null,0,null,0]
[6,"Büyük Konteynır 3,5m3",null,null,null,0,null,0,null,0]
[7,"Büyük Konteynır 5m³",null,null,null,0,null,0,null,0]
[8,"Büyük Konteynır 7m³",null,null,null,0,null,0,null,0]
[9,"Hooklift Konteynır 2,5",null,null,null,0,null,0,null,0]
[10,"Hooklift Konteynır 5m³",null,null,null,0,null,0,null,0]
[11,"Hooklift Konteynır 10m³",null,null,null,0,null,0,null,0]
[12,"Hooklift Konteynır 25m³",null,null,null,0,null,0,null,0]
[13,"Hooklift Konteynır 35m³",null,null,null,0,null,0,null,0]
[14,null,null,null,null,0,null,0,null,0]
[15,null,null,null,null,0,null,0,null,0]
[16,"Diğer konteynırlar ",null,null,null,{"$f":"D23*E23","v":0},null,{"$f":"F23*G23","v":0},null,0]
[null,"Toplama ekipmanları alt toplamı",{"$f":"SUM(C8:C23)","v":0},{"$f":"SUM(D8:D23)","v":0},null,{"$f":"SUM(F8:F23)","v":0},null,{"$f":"SUM(H8:H23)","v":0},{"$f":"SUM(I8:I23)","v":0},{"$f":"SUM(J8:J23)","v":0}]
[1,"Araçlar Kamyon 8t",null,null,null,{"$f":"D25*E25","v":0},null,{"$f":"F25*G25","v":0},null,{"$f":"H25+I25","v":0}]
[2,"Araçlar Kamyon 12t",null,null,null,{"$f":"D26*E26","v":0},null,{"$f":"F26*G26","v":0},null,{"$f":"H26+I26","v":0}]
[3,"Araçlar Rotopres",null,null,null,{"$f":"D27*E27","v":0},null,{"$f":"F27*G27","v":0},null,{"$f":"H27+I27","v":0}]
[4,"Araçlar Sıkıştırmalı Kamyon",null,null,null,{"$f":"D28*E28","v":0},null,{"$f":"F28*G28","v":0},null,{"$f":"H28+I28","v":0}]
[5,"Damperli Kamyon",null,null,null,{"$f":"D29*E29","v":0},null,{"$f":"F29*G29","v":0},null,{"$f":"H29+I29","v":0}]
[6,"Açık Kasa Kamyon",null,null,null,0,null,0,null,0]
[7,"Konteynır Taşıyıcı Kamyon",null,null,null,0,null,0,null,0]
[8,"Hooklift Kamyon",null,null,null,0,null,0,null,0]
[9,"Yük Kaldırma/İstifleme Aracı",null,null,null,0,null,0,null,0]
[10,"Traktör ve Römork",null,null,null,0,null,0,null,0]
[11,"Diğer Araçlar",null,null,null,{"$f":"D35*E35","v":0},null,{"$f":"F35*G35","v":0},null,0]
[null,"Taşıma ekipmanları alt toplamı",{"$f":"SUM(C25:C35)","v":0},{"$f":"SUM(D25:D35)","v":0},null,{"$f":"SUM(F25:F35)","v":0},null,{"$f":"SUM(H25:H35)","v":0},{"$f":"SUM(I25:I35)","v":0},{"$f":"SUM(J25:J35)","v":0}]
[null,"TOPLAM",null,null,null,{"$f":"F24+F36","v":0},null,{"$f":"H24+H36","v":0},{"$f":"I24+I36","v":0},{"$f":"J24+J36","v":0}]
[null,"OPERATOR - KURUM / KURULUŞUN ADI ","1.1","2.1","3.1","4.1","5.1","6.1","7.1","8.1"]
[null,"Atık işleme, geri dönüşüm, geri kazanım","Kullanımda olan mevcut birim adedi ","Planlanan yeni satın alma","Yeni birim satın alma fiyatı (₺)","Gerekli yatırım (₺) ","Amortisman oranı","Yıllık amortisman (aşınma payı)","Yıllık kredi hizmetleri için planlanan harcamalar","Yıllık amortisman ve kredi hizmeti"]
[1,"Araştırmalar, tasarım, izinler",null,null,null,{"$f":"D40*E40","v":0},null,{"$f":"F40*G40","v":0},null,{"$f":"H40+I40","v":0}]
[2,"Arsa satın alımı",null,null,null,{"$f":"D41*E41","v":0},null,{"$f":"F41*G41","v":0},null,{"$f":"H41+I41","v":0}]
[3,"Mekanik tesisatlar",null,null,null,0,null,0,null,0]
[4,"Mobil ekipman (donanım) ",null,null,null,0,null,0,null,0]
[5,"İnşaat yapımı",null,null,null,0,null,0,null,0]
[6,null,null,null,null,0,null,0,null,0]
[7,"Diğer maliyetler",null,null,null,0,null,0,null,{"$f":"H46+I46","v":0}]
[null,"Arıtma alt toplam",{"$f":"SUM(C40:C46)","v":0},null,null,{"$f":"SUM(F40:F46)","v":0},null,{"$f":"SUM(H40:H46)","v":0},{"$f":"SUM(I40:I46)","v":0},{"$f":"SUM(J40:J46)","v":0}]
[null,"OPERATOR - KURUM / KURULUŞUN ADI ","1.2","2.2","3.2","4.2","5.2","6.2","7.2","8.2"]
[null,"Depolama Sahası Yatırımları","Kullanımda olan mevcut birim adedi ","Planlanan yeni satın alma","Yeni birim satın alma fiyatı (₺)","Gerekli yatırım (₺) ","Amortisman oranı","Yıllık amortisman (aşınma payı)","Yıllık kredi hizmetleri için planlanan harcamalar","Yıllık amortisman ve kredi hizmeti"]
[1,"Araştırmalar, tasarım, izinler",null,null,null,0,null,0,null,0]
[2,"Arsa satın alımı",null,null,null,0,null,0,null,0]
[3,"Mekanik tesisatlar",null,null,null,0,null,0,null,0]
[4,"Mobil ekipman (donanım) ",null,null,null,0,null,0,null,0]
[5,"İnşaat yapımı",null,null,null,{"$f":"D54*E54","v":0},null,{"$f":"F54*G54","v":0},null,{"$f":"H54+I54","v":0}]
[6,null,null,null,null,{"$f":"D55*E55","v":0},null,{"$f":"F55*G55","v":0},null,{"$f":"H55+I55","v":0}]
[7,"Diğer maliyetler",null,null,null,{"$f":"D56*E56","v":0},null,{"$f":"F56*G56","v":0},null,{"$f":"H56+I56","v":0}]
[null,"Düzenli depolama alt toplam",{"$f":"SUM(C50:C56)","v":0},null,null,{"$f":"SUM(F50:F56)","v":0},null,{"$f":"SUM(H50:H56)","v":0},{"$f":"SUM(I50:I56)","v":0},{"$f":"SUM(J50:J56)","v":0}]
[null,"TOPLAM ARITMA&BERTARAF",null,null,null,{"$f":"F47+F57","v":0},null,{"$f":"H47+H57","v":0},{"$f":"I47+I57","v":0},{"$f":"J47+J57","v":0}]
[null,"GENEL YATIRIM TOPLAMI++",null,null,null,{"$f":"SUM(F37,F58)","v":0},null,{"$f":"SUM(H37,H58)","v":0},{"$f":"SUM(I37,I58)","v":0},{"$f":"SUM(J37,J58)","v":0}]
[null,"TOPLAMA, TAŞIMA, GERİ DÖNÜŞÜM VE DÜZENLİ DEPOLAMA MALİYET DÜZELTMESİ "]
[1,"Mevcut durumda yıllık toplama ve taşıma maliyetleri (₺)",{"$f":"'7. TOPLAM MALİYET'!C14:D14","v":0},null,"Mevcut durumda toplama, taşıma, işleme, geri kazanım ve düzenli depolama için yıllık Maliyetler (₺) ",{"$f":"C61","v":0}]
[2,"Toplama ekipmanları için tahmini yıllık ek maliyet",{"$f":"J37","v":0},{"$f":"C62/$C$61","v":{"$error":"#DIV/0!"}},"Tüm yatırımlar için tahmini yıllık ek harcamalar (yatırım maliyetleri)",{"$f":"J59","v":0}]
[3,"Toplama ve taşımanın değişken maliyetlerinde tahmini yıllık artış (₺)",null,{"$f":"C63/$C$61","v":{"$error":"#DIV/0!"}},"İşleme ve düzenli depolamanın işletme maliyetlerinde tahmini yıllık artış (toplam ₺)"]
[4,"Maliyetlerde tahmini yıllık artış ",{"$f":"SUM(C62:C63)","v":0},{"$f":"C64/$C$61","v":{"$error":"#DIV/0!"}},"Maliyetlerde tahmini yıllık artış ",{"$f":"SUM(F62:F63)","v":0},{"$f":"F64/$F$61","v":{"$error":"#DIV/0!"}}]
[5,"Toplam yıllık maliyetler",{"$f":"SUM(C61:C63)","v":0},null,"Tahmini toplam yıllık maliyetler",{"$f":"SUM(F61:F63)","v":0}]
[6,"Ton başına mevcut toplama ve taşıma maliyeti (₺/ton)",{"$f":"'7. TOPLAM MALİYET'!C25:D25","v":{"$error":"#DIV/0!"}},null,{"$f":"B67","v":"Ekipman yatırımları için artışı  içerecek şekilde tahmini toplama ve taşıma maliyeti (₺/ton)"},{"$f":"C67","v":{"$error":"#DIV/0!"}}]
[7,"Ekipman yatırımları için artışı  içerecek şekilde tahmini toplama ve taşıma maliyeti (₺/ton)",{"$f":"C66*(1+D64)","v":{"$error":"#DIV/0!"}},null,"Toplanan miktarların geri dönüşümü, geri kazanımı ve düzenli depolanması için yatırım maliyetlerinde tahmini artış (₺/ton)",{"$f":"F64/'2. TOPLANAN ATIK MİKTARLARI'!H21","v":{"$error":"#DIV/0!"}}]
[8,"Ton başına toplama ve taşıma maliyetlerinde tahmini artış (₺)",{"$f":"C67-C66","v":{"$error":"#DIV/0!"}},{"$f":"C68/C66","v":{"$error":"#DIV/0!"}},"Katı Atık Yönetiminin (toplama, taşıma, işleme ve düzenli depolama) yatırımlardaki artışı içeren tahmini toplam maliyeti (₺/ton)",{"$f":"F67+F66","v":{"$error":"#DIV/0!"}},{"$f":"F68/$F$69","v":{"$error":"#DIV/0!"}}]
[null,null,null,null,{"$f":"B66","v":"Ton başına mevcut toplama ve taşıma maliyeti (₺/ton)"},{"$f":"C66","v":{"$error":"#DIV/0!"}}]
[null,null,null,null,"Toplama, taşıma, işleme ve düzenli depolama için yatırım maliyetlerindeki tahmini artış (₺/ton)",{"$f":"F68-F69","v":{"$error":"#DIV/0!"}},{"$f":"F70/$F$69","v":{"$error":"#DIV/0!"}}]
[]
[null,"ANA SAYFA"]

{"sheet":"9. SÖZEL BİLGİ","index":9,"n_rows":175,"n_cols":8,"rows_kept":175,"cut":false,"hidden":false,"merged":[[174,1,176,1],[139,3,139,4],[140,3,140,4],[141,3,141,4],[143,3,143,4],[142,3,142,4],[165,3,165,4],[171,3,171,4],[145,3,145,4],[146,3,146,4],[147,3,147,4],[151,3,151,4],[152,3,152,4],[169,3,169,4],[170,3,170,4],[153,3,153,4],[57,2,57,4],[60,2,60,4],[134,3,134,4],[135,3,135,4],[132,3,132,4],[130,3,130,4],[62,2,62,4],[58,2,58,4],[137,3,137,4],[138,3,138,4],[144,3,144,4],[131,3,131,4],[133,3,133,4],[154,3,154,4],[155,3,155,4],[166,3,166,4],[167,3,167,4],[168,3,168,4],[26,2,26,4],[24,2,24,4],[29,4,29,5],[1,1,1,4],[0,1,0,4],[22,2,22,4]]}
[null,"BELEDİYE ATIK YÖNETİMİ SÖZEL BİLGİ "]
[null,{"$f":"'2. TOPLANAN ATIK MİKTARLARI'!B2:F2","v":0}]
[1,"Bilgi toplama düzeyi",null,"EVET","HAYIR"]
[null,null,"Belediye"]
[null,null,"Şehir"]
[null,null,"İlçe, Bölge"]
[]
[2,"Toplama türü",null,"EVET","HAYIR"]
[null,null,"Geleneksel"]
[null,null,"Atık fraksiyonlarının ayrı olarak toplanması"]
[null,null,"Hacimli atıkların ayrı toplanması"]
[]
[3,"Atık geri kazanım işlemleri",null,"EVET","HAYIR"]
[null,null,"örgütlü (organize)"]
[null,null,"örgütsüz (organize olmayan)"]
[]
[4,"Atıkların düzenli ayrıştırıldığı yer",null,"EVET","HAYIR"]
[null,null,"Ev"]
[null,null,"Sokak"]
[null,null,"Depolama sahası"]
[null,null,"Diğer"]
[]
[5,"Belediye atıklarını toplayan ve taşıyan işletmelerin isimleri ve adresleri "]
[]
[6,"Sorumlu kişinin adı"]
[]
[7,"Son veri giriş zamanı"]
[]
[]
[8,"TOPLAMA HACMİ - Belediye atıklarını toplayan ve taşıyan Yerel Kamu Hizmeti Şirketi veya işletmesi ","Atıkların toplanması ve bertaraf tesislerine (depolama sahalarına) taşınması için ekipmanlar","TİP","Kapasite  m³/ton",null,"SAYI"]
[null,null,"Rotopress kamyonlar"]
[null,null,"Sıkıştırmalı kamyonlar"]
[null,null,"Açık kamyonlar"]
[null,null,"Traktörler"]
[null,null,"Diğerleri"]
[null,null,"Recycling containers"]
[null,null,"Containers 5 t"]
[null,null,"Diğer "]
[null,null,"Geri dönüşüm konteynırları",null,null,null,"Sayı","m³"]
[null,null,"Büyük konteynır 3,5m³",null,null,null,null,{"$f":"G40*E40","v":0}]
[null,null,"Büyük konteynır 5 m³",null,null,null,null,{"$f":"G41*E41","v":0}]
[null,null,"Büyük konteynır 7 m³",null,null,null,null,0]
[null,null,"Hooklift konteynır 2,5m³",null,null,null,null,0]
[null,null,"Hooklift konteynır 5 m³",null,null,null,null,0]
[null,null,"Hooklift konteynır 10 m³",null,null,null,null,0]
[null,null,"Hooklift konteynır 25 m³",null,null,null,null,0]
[null,null,"Hooklift konteynır 35 m³",null,null,null,null,0]
[null,null,"Konteynır 1.100 l",null,null,null,null,0]
[null,null,"Konteynır 660 l",null,null,null,null,0]
[null,null,"Konteynır 770 l",null,null,null,null,0]
[null,null,"Çöp kutusu 120 l",null,null,null,null,0]
[null,null,"Çöp kutusu 240 l",null,null,null,null,0]
[null,null,"Torba",null,null,null,null,0]
[null,null,"Diğer ",null,null,null,null,0]
[null,null,"TOPLAM sağlanan Toplama Hacmi m3",null,null,null,{"$f":"SUM(G40:G54)","v":0},{"$f":"SUM(H40:H54)","v":0}]
[]
[]
[9,"Depolama sahasının yeri – belediye ve yerin adı, coğrafi koordinatları   "]
[null,"Atık depolamanın başlatıldığı yıl "]
[]
[10,"Atıklarını depolama sahasına getiren belediyeler "]
[]
[11,"Depolama sahası işleticisinin ismi ve adresi"]
[]
[12,"Depolama sahası hakkında bilgi  ",null,"EVET","HAYIR"]
[null,null,"AB uyumlu"]
[null,null,"Geleneksel depolama sahası"]
[null,"Depolama sahası mülkiyeti","Kamu"]
[null,null,"Özel"]
[null,null,"Birleşik"]
[null,"Depolama sahası yasal durumu ","Ruhsatlı"]
[null,null,"Ruhsatsız"]
[null,null,"Muaf"]
[null,null,"Öngörülen"]
[null,null,"Kaçak"]
[null,"Depolama sahası – İşletme durumu","Planlanmış"]
[null,null,"İnşa halinde"]
[null,null,"Faal"]
[null,null,"Atıl (Gayrifaal)"]
[null,null,"Rehabilitasyon sürecinde"]
[null,null,"Kapatılacak"]
[null,null,"Kapalı"]
[null,null,"Temiz kapalı"]
[null,null,"Daha sonra belirlenecek"]
[null,"Depolama sahası - İşletmeci tipi","Federal"]
[null,null,"Devlet"]
[null,null,"Bölgesel"]
[null,null,"Şehir"]
[null,null,"Belediye"]
[null,null,"Özel"]
[null,null,"İlçe"]
[null,"Depolama sahası altyapısı","Ulaşım yolu"]
[null,null,"İç yollar"]
[null,null,"Su"]
[null,null,"Kanalizasyon"]
[null,null,"Elektrik"]
[null,null,"Gaz toplama"]
[null,null,"Kamyon köprü kantarı"]
[null,null,"Araç yıkama ekipmanı"]
[null,"Bertaraf (depolama) sahalarında mekanizasyon","Buldozerler"]
[null,null,"Sıkıştırıcılar (Kompaktörler)"]
[null,null,"Diğer - belirtiniz"]
[null,"Depolama sahasında çevre koruma ekipmanları ","Direnaj (sızıntı toplama)"]
[null,null,"Yüzey su kanalları"]
[null,null,"Sızıntı suyu toplama"]
[null,null,"Su arıtma sistemi"]
[null,null,"Örtme ve sıkıştırma"]
[null,null,"Dezenfeksiyon, imha"]
[null,null,"Diğer "]
[null,"Bertaraf (depolama) sahalarında depolanan atık türleri ve kullanılan atık işleme teknolojileri","Arıtma (işleme) yapılmaksızın  izin verilen atık türlerinin depolanması "]
[null,null,"Metaller "]
[null,null,"Ambalaj atığı"]
[null,null,"Tarımsal atık"]
[null,null,"İnşaat atığı"]
[null,null,"Elektronik atık"]
[null,null,"Tehlikeli evsel atık"]
[null,null,"Tıbbi atık"]
[null,null,"Hayvan atıkları"]
[null,null,"Kül ve çamur"]
[null,null,"Lastikler"]
[null,null,"İnert malzeme içeren atıklar"]
[null,null,"Depolama sahasında atık ayırma"]
[null,null,"Atık geri kazanım / işleme tesisi"]
[null,null,"Geri dönüşüm tesisi"]
[null,null,"Kompost tesisi"]
[null,null,"Gazlaştırma"]
[null,null,"Yakma"]
[null,null,"Birleşik arıtma"]
[null,null,"Diğer - belirtiniz"]
[]
[null,"Depolama alanı geometrik bilgileri","Uzunluk (m)"]
[null,null,"Genişlik (m)"]
[null,null,"Yüz ölçümü (m2)"]
[null,null,"Hacim (m3)"]
[null,null,"Toplam depolama hacmi (m3)"]
[null,null,"2010 yılına kadar kullanılan depolama hacmi (m3)"]
[]
[null,"Depolama sahasının yerinin mesafesi metre olarak","Meskûn yerleşimler"]
[null,null,"Dereler, nehirler, göller"]
[null,null,"Su tedarik kaynakları"]
[null,null,"Sağlık merkezleri ya da hastaneler"]
[null,null,"Gıda üretim yeri"]
[null,null,"Yer altı altyapısı"]
[null,null,"Gaz veya petrol boru hattı"]
[null,null,"Otobüs veya tren istasyonu"]
[null,null,"Havaalanı"]
[null,null,"Yanıcı malzeme depolama"]
[null,null,"Korunan alanlar"]
[]
[]
[null,"Toplama ve taşıma için işletme finansmanı"]
[null,null,"Kullanıcı ücretleri – tarifeleri (belirtiniz : hane başına, kişi başına, kg/ton veya m2,  ₺ cinsinden)"]
[null,null,"Kullanıcı ücretleri – tarifeleri (belirtiniz : sanayi ve ticarethaneler için, kg/ton,  m2 veya diğer, ₺ cinsinden)"]
[null,null,"m3 veya kg/t başına taşıma ve toplama için ayrı, ₺ cinsinden"]
[null,null,"m3 veya kg/t başına depolama sahasında depolama için ayrı, ₺ cinsinden"]
[null,null,"m3 veya kg/t başına  toplama ve bertaraf (depolama) için tek ücret, ₺ cinsinden "]
[]
[13,"Toplama ve depolama sahasına taşıma için tam maliyet kapsaması ",null,"EVET","HAYIR"]
[null,null,"Mevcut tarife işletme giderlerini karşılıyor "]
[null,null,"Mevcut tarife amortismanı içerecek şekilde işletme giderlerini karşılıyor "]
[null,null,"Mevcut tarife yatırımı/kredi geri ödemesini içerecek şekilde tüm maliyeti karşılıyor "]
[null,"Kontrollü (düzenli) depolama sahalarında atık bertarafı (depolama) için atık boşaltma ücreti ve diğer ücretler ","Mevcut tarife işletme giderlerini karşılıyor "]
[null,null,"Mevcut tarife amortismanı içerecek şekilde işletme giderlerini karşılıyor "]
[null,null,"Mevcut tarife yatırımı/kredi geri ödemesini içerecek şekilde tüm maliyeti karşılıyor "]
[]
[14,"Yatırım finansmanı","Çevre Fonu"]
[null,"Yeni düzenli depolama sahası veya atık yönetiminin finansmanı için yerel plan, kesin rakamlar 000 ₺ veya toplam yatırım değerinin yüzdesi","Uluslararası bağış"]
[null,null,"Ulusal sübvansiyonlar"]
[null,null,"Belediye bütçesi"]
[null,null,"Doğrudan Krediler"]
[null,null,"Özel sektör yatırımı veya katılımı"]
[null,null,"Toplam",{"$f":"SUM(D166:E171)","v":0}]
[]
[]
[null,"ANA SAYFA"]